bitfinex-derivatives/quotes_SOLF0:USTF0_20250712
["timestamp","ask_amount","ask_price","bid_price","bid_amount"]
[1752322317761,183.65201069,161.2,161.09,3.3]
[1752322317762,3.29,161.1,161.09,3.3]
[1752322321556,6.2045,161.12,161.09,3.3]
[1752322321757,3.29,161.11,161.09,3.3]
[1752322321950,3.29,161.11,161.06,2.37201069]
[1752322321951,3.29,161.11,161.1,3.3]
[1752322322150,6.204,161.13,161.1,3.3]
[1752322322351,3.29,161.12,161.09,6.2052]
[1752322322549,2.37201069,161.14,161.07,2.37201069]
[1752322322759,3.29,161.1,161.08,3.3]
[1752322323057,2.37201069,161.14,161.08,3.3]
[1752322323259,3.29,161.09,161.08,3.3]
[1752322324251,3.29,161.11,161.08,3.3]
[1752322324455,3.29,161.1,161.08,3.3]
[1752322324656,3.29,161.12,161.08,3.3]
[1752322324861,3.29,161.13,161.09,5.67201069]
[1752322325060,3.29,161.12,161.1,3.3]
[1752322325263,3.29,161.12,161.11,3.3]
[1752322326966,6.2031,161.16,161.11,6.2047]
[1752322327159,6.2031,161.16,161.09,2.37201069]
[1752322327160,2.37201069,161.2,161.12,3.3]
[1752322327366,3.29,161.16,161.14,6.2034]
[1752322327563,3.29,161.16,161.15,3.3]
[1752322328761,3.29,161.16,161.13,11.87581069]
[1752322328956,3.29,161.15,161.13,5.67201069]
[1752322329164,3.29,161.14,161.13,3.3]
[1752322333771,3.29,161.15,161.13,3.3]
[1752322334168,3.29,161.15,161.13,9.5039]
[1752322334470,9.4929,161.16,161.15,3.3]
[1752322336272,3.42,161.14,161.13,3.39]
[1752322336572,3.42,161.14,161.1,3.39]
[1752322336873,3.42,161.13,161.11,3.39]
[1752322338368,3.42,161.12,161.09,3.39]
[1752322338873,3.42,161.12,161.08,3.39]
[1752322339067,3.42,161.11,161.08,3.39]
[1752322339580,3.42,161.1,161.09,3.39]
[1752322341370,6.2045,161.12,161.09,3.39]
[1752322341569,3.42,161.13,161.12,3.39]
[1752322342274,3.42,161.17,161.12,3.39]
[1752322342763,6.2027,161.17,161.13,6.2037]
[1752322342970,3.42,161.16,161.14,3.39]
[1752322343171,3.42,161.15,161.14,3.39]
[1752322343779,3.42,161.16,161.14,3.39]
[1752322343975,3.42,161.16,161.15,3.39]
[1752322344176,2.37096947,161.21,161.13,5.76096947]
[1752322344177,3.42,161.2,161.13,5.76096947]
[1752322344364,6.2031,161.16,161.13,5.76096947]
[1752322344569,3.42,161.15,161.14,3.39]
[1752322344975,9.6232,161.15,161.14,3.39]
[1752322346376,9.6236,161.14,161.13,3.39]
[1752322347473,3.42,161.17,161.13,3.39]
[1752322347672,3.42,161.17,161.15,3.39]
[1752322347872,3.42,161.17,161.16,3.39]
[1752322348175,9.6226,161.17,161.16,3.39]
[1752322348373,3.42,161.17,161.16,3.39]
[1752322349174,9.6224,161.17,161.16,3.39]
[1752322349772,6.2017,161.19,161.16,3.39]
[1752322349969,3.42,161.19,161.17,3.39]
[1752322350676,9.6217,161.19,161.18,3.39]
[1752322352281,3.42,161.19,161.18,3.39]
[1752322352575,3.42,161.22,161.18,3.39]
[1752322352779,3.42,161.24,161.21,3.39]
[1752322352978,3.42,161.25,161.21,3.39]
[1752322353187,3.42,161.26,161.24,3.39]
[1752322353484,9.6187,161.27,161.24,3.39]
[1752322353680,3.42,161.31,161.26,3.39]
[1752322353975,9.6179,161.29,161.27,3.39]
[1752322354175,9.6179,161.29,161.25,8.56713984]
[1752322354380,3.42,161.29,161.28,3.39]
[1752322354973,9.6178,161.29,161.28,3.39]
[1752322355575,3.42,161.31,161.28,3.39]
[1752322355772,535.94,161.35,161.3,3.39]
[1752322355973,3.42,161.33,161.3,3.39]
[1752322356175,3.42,161.35,161.32,3.39]
[1752322356372,3.42,161.39,161.33,3.39]
[1752322356576,6.1966,161.32,161.31,3.39]
[1752322356885,3.42,161.31,161.3,3.39]
[1752322357184,3.42,161.35,161.3,3.39]
[1752322357578,3.42,161.34,161.3,3.39]
[1752322357773,3.42,161.33,161.31,3.39]
[1752322358084,2.36813984,161.38,161.32,3.39]
[1752322358282,3.42,161.37,161.33,3.39]
[1752322358678,9.6162,161.34,161.33,3.39]
[1752322358978,3.42,161.37,161.3,3.39]
[1752322359178,6.1968,161.32,161.3,3.39]
[1752322361392,6.1964,161.33,161.3,3.39]
[1752322362686,3.42,161.32,161.31,3.39]
[1752322362881,3.42,161.32,161.28,3.39]
[1752322363278,6.1973,161.31,161.28,3.39]
[1752322363982,3.42,161.3,161.28,3.39]
[1752322364178,2.36577671,161.33,161.28,3.39]
[1752322364379,3.42,161.32,161.28,3.39]
[1752322364687,9.6878,161.29,161.28,3.39]
[1752322364888,3.49,161.28,161.25,3.38]
[1752322365086,3.49,161.27,161.26,3.38]
[1752322365383,9.6888,161.27,161.26,3.38]
[1752322365584,2.36577671,161.31,161.24,2.36577671]
[1752322365785,3.49,161.28,161.27,3.38]
[1752322366185,2.36577671,161.31,161.22,8.56617671]
[1752322366384,3.49,161.27,161.26,3.38]
[1752322366684,9.6888,161.27,161.26,3.38]
[1752322369582,9.6888,161.27,161.22,6.2004]
[1752322369785,3.49,161.25,161.24,3.38]
[1752322370694,9.6896,161.25,161.24,3.38]
[1752322370890,3.49,161.25,161.24,3.38]
[1752322371194,3.49,161.26,161.25,3.38]
[1752322371494,9.6891,161.26,161.25,3.38]
[1752322374393,3.49,161.24,161.23,3.38]
[1752322374892,6.1996,161.25,161.23,3.38]
[1752322375100,9.6896,161.25,161.24,3.38]
[1752322377899,9.6902,161.23,161.22,3.38]
[1752322379397,2.36577671,161.25,161.2,3.38]
[1752322379600,3.49,161.24,161.21,3.38]
[1752322379996,3.49,161.2,161.19,3.38]
[1752322380494,2.36577671,161.25,161.19,9.5816]
[1752322380703,31.0045,161.31,161.2,5.74888399]
[1752322380704,3.49,161.26,161.2,5.74888399]
[1752322380893,3.49,161.26,161.21,3.38]
[1752322381095,6.2001,161.23,161.21,3.38]
[1752322381302,9.6901,161.23,161.2,8.56998399]
[1752322381602,9.6901,161.23,161.22,3.38]
[1752322382102,6.2006,161.22,161.21,3.38]
[1752322382303,2.36869531,161.25,161.19,6.2015]
[1752322382597,6.2008,161.22,161.19,6.2015]
[1752322382795,3.49,161.21,161.2,3.38]
[1752322383596,9.6909,161.21,161.2,3.38]
[1752322383791,2.36869531,161.25,161.2,3.38]
[1752322383997,3.49,161.24,161.2,3.38]
[1752322384196,3.49,161.23,161.2,3.38]
[1752322384500,3.49,161.26,161.2,3.38]
[1752322384900,3.49,161.26,161.21,3.38]
[1752322385103,3.49,161.26,161.22,3.38]
[1752322385299,3.49,161.26,161.24,3.38]
[1752322385598,3.49,161.23,161.22,3.38]
[1752322386803,6.1999,161.24,161.22,3.38]
[1752322387008,9.6899,161.24,161.22,3.38]
[1752322387202,3.49,161.24,161.21,3.38]
[1752322387603,6.2005,161.22,161.21,3.38]
[1752322387809,9.6905,161.22,161.21,3.38]
[1752322388702,6.2003,161.23,161.21,3.38]
[1752322388902,3.49,161.24,161.22,6.2004]
[1752322389103,3.49,161.24,161.23,3.38]
[1752322389302,2.36869531,161.29,161.23,3.38]
[1752322389506,3.49,161.25,161.23,3.38]
[1752322389803,9.6896,161.25,161.23,3.38]
[1752322390409,9.6896,161.25,161.22,8.56909531]
[1752322390609,9.6896,161.25,161.24,3.38]
[1752322392607,3.49,161.25,161.24,3.38]
[1752322393507,9.6891,161.26,161.22,2.36869531]
[1752322393713,9.6891,161.26,161.25,3.38]
[1752322393903,3.49,161.26,161.25,3.38]
[1752322395212,9.6889,161.26,161.25,3.38]
[1752322395413,3.49,161.26,161.25,3.38]
[1752322395614,9.6889,161.26,161.25,3.38]
[1752322397716,6.1989,161.26,161.25,3.38]
[1752322398114,9.6889,161.26,161.25,3.38]
[1752322398313,6.1988,161.27,161.25,3.38]
[1752322398612,3.49,161.28,161.25,3.38]
[1752322399107,9.6885,161.28,161.25,9.5791]
[1752322399307,3.49,161.28,161.27,3.44]
[1752322400016,9.6882,161.28,161.27,3.44]
[1752322401612,3.49,161.28,161.26,3.44]
[1752322401819,3.49,161.28,161.25,3.44]
[1752322402315,9.6892,161.26,161.25,3.44]
[1752322402515,3.49,161.26,161.22,2.36869531]
[1752322402716,9.6896,161.25,161.24,3.44]
[1752322402915,3.49,161.25,161.24,3.44]
[1752322404314,9.6893,161.25,161.24,3.44]
[1752322404809,3.49,161.25,161.22,3.44]
[1752322405014,3.49,161.24,161.23,3.44]
[1752322405918,6.1996,161.25,161.23,3.44]
[1752322406219,9.6896,161.25,161.23,3.44]
[1752322406421,9.6896,161.25,161.24,3.44]
[1752322407819,6.1997,161.24,161.2,2.36869531]
[1752322408021,9.6897,161.24,161.23,3.44]
[1752322408315,3.49,161.24,161.19,3.44]
[1752322408817,6.2003,161.23,161.2,6.2012]
[1752322409031,3.49,161.22,161.21,3.44]
[1752322409719,3.49,161.22,161.19,9.6415]
[1752322409922,3.49,161.22,161.2,3.44]
[1752322410418,3.49,161.21,161.2,3.44]
[1752322410817,3.49,161.26,161.2,3.44]
[1752322411014,2.36869531,161.31,161.23,2.36869531]
[1752322411214,6.1989,161.27,161.24,9.6397]
[1752322411419,3.49,161.26,161.25,3.44]
[1752322414620,3.49,161.28,161.23,3.44]
[1752322415020,3.49,161.26,161.23,3.44]
[1752322415222,3.49,161.24,161.23,3.44]
[1752322415624,3.49,161.24,161.23,9.6401]
[1752322416214,3.49,161.24,161.23,3.44]
[1752322416424,9.6893,161.25,161.2,2.36869531]
[1752322416624,9.6893,161.25,161.24,3.44]
[1752322422634,6.2001,161.24,161.22,3.44]
[1752322422836,3.49,161.23,161.22,3.44]
[1752322423237,6.2001,161.24,161.22,9.6403]
[1752322423433,6.2001,161.24,161.23,3.44]
[1752322423630,9.6901,161.24,161.23,3.44]
[1752322423837,3.49,161.24,161.23,3.44]
[1752322424034,3.49,161.26,161.23,3.44]
[1752322424639,3.49,161.28,161.22,3.44]
[1752322424841,3.59,161.27,161.24,3.44]
[1752322425041,5.06150913,161.32,161.25,2.3678873]
[1752322425243,3.59,161.3,161.26,3.44]
[1752322425848,6.1978,161.29,161.27,3.44]
[1752322427044,3.59,161.3,161.28,3.44]
[1752322427243,2.3678873,161.35,161.28,3.44]
[1752322427544,3.59,161.3,161.28,3.44]
[1752322430050,3.59,161.3,161.28,6.1982]
[1752322430251,3.59,161.3,161.29,3.44]
[1752322431748,3.59,161.35,161.29,2.36655049]
[1752322431953,3.59,161.35,161.3,3.44]
[1752322432252,3.59,161.35,161.31,3.44]
[1752322432454,6.1965,161.33,161.31,3.44]
[1752322432653,3.59,161.32,161.29,5.80655049]
[1752322432853,3.59,161.32,161.3,3.44]
[1752322433055,3.59,161.31,161.3,9.6374]
[1752322433248,3.59,161.31,161.3,3.44]
[1752322433745,3.59,161.31,161.3,9.6374]
[1752322434050,9.787,161.31,161.3,3.44]
[1752322434657,3.59,161.29,161.28,3.44]
[1752322434858,3.59,161.29,161.25,3.44]
[1752322435154,6.1982,161.28,161.26,3.44]
[1752322435354,3.59,161.27,161.26,3.44]
[1752322435556,3.59,161.27,161.25,6.1991]
[1752322435747,3.59,161.3,161.25,9.6391]
[1752322435951,3.59,161.3,161.26,3.44]
[1752322437153,3.59,161.27,161.26,3.44]
[1752322437656,9.7886,161.27,161.26,3.44]
[1752322438556,3.59,161.27,161.26,9.6389]
[1752322438854,6.1984,161.28,161.27,3.44]
[1752322438855,9.7884,161.28,161.27,3.44]
[1752322440249,3.59,161.31,161.28,3.44]
[1752322440447,3.59,161.31,161.29,3.44]
[1752322440650,6.1976,161.3,161.29,3.44]
[1752322440848,9.7876,161.3,161.29,3.44]
[1752322441358,2.36655049,161.34,161.28,3.44]
[1752322441656,535.48,161.38,161.3,3.44]
[1752322441657,3.59,161.32,161.3,3.44]
[1752322442057,3.59,161.34,161.3,5.80655049]
[1752322442361,3.59,161.34,161.33,3.44]
[1752322442962,6.1957,161.35,161.32,6.1965]
[1752322443163,9.7857,161.35,161.34,3.44]
[1752322444557,6.1949,161.37,161.33,2.36655049]
[1752322444758,9.7849,161.37,161.36,3.44]
[1752322446761,3.59,161.37,161.36,3.44]
[1752322447065,3.59,161.38,161.36,3.44]
[1752322447262,3.59,161.38,161.36,9.6349]
[1752322447459,3.59,161.38,161.37,3.44]
[1752322448367,9.7843,161.38,161.37,3.44]
[1752322448864,3.59,161.38,161.37,3.44]
[1752322449363,6.1948,161.37,161.35,12.00195049]
[1752322449558,2.36655049,161.41,161.34,3.44]
[1752322449867,2.36655049,161.39,161.34,3.44]
[1752322450064,3.59,161.35,161.34,3.44]
[1752322450759,9.7855,161.35,161.34,3.44]
[1752322450963,3.59,161.38,161.31,3.44]
[1752322451659,3.59,161.33,161.32,3.44]
[1752322452065,9.7856,161.35,161.32,9.6366]
[1752322452268,3.59,161.34,161.33,3.44]
[1752322452468,9.7856,161.35,161.33,3.44]
[1752322453157,6.1963,161.33,161.3,6.1971]
[1752322453362,3.59,161.32,161.31,3.44]
[1752322454060,6.1963,161.33,161.31,3.44]
[1752322454270,9.7863,161.33,161.32,3.44]
[1752322457769,6.1968,161.32,161.29,6.1977]
[1752322457970,9.7268,161.32,161.29,3.42]
[1752322459166,9.7268,161.32,161.3,6.1974]
[1752322459367,9.7268,161.32,161.31,3.42]
[1752322459865,3.53,161.32,161.31,3.42]
[1752322460265,6.1964,161.33,161.31,3.42]
[1752322460565,9.7264,161.33,161.31,3.42]
[1752322461166,6.1956,161.35,161.32,6.1966]
[1752322461372,9.7256,161.35,161.33,3.42]
[1752322461970,3.53,161.35,161.33,9.6162]
[1752322462160,9.7253,161.36,161.34,3.42]
[1752322462567,6.1944,161.38,161.36,3.42]
[1752322462768,9.7244,161.38,161.37,3.42]
[1752322463265,3.53,161.38,161.37,3.42]
[1752322463766,6.1937,161.4,161.37,9.6147]
[1752322463972,6.1937,161.4,161.37,6.1947]
[1752322464269,9.7237,161.4,161.37,6.1947]
[1752322464466,3.53,161.39,161.37,6.1947]
[1752322464667,3.53,161.4,161.39,3.42]
[1752322465269,6.1929,161.42,161.39,6.194]
[1752322465476,6.1929,161.42,161.4,3.42]
[1752322465477,3.53,161.41,161.4,3.42]
[1752322467971,9.7232,161.41,161.4,3.42]
[1752322468167,9.7232,161.41,161.39,6.194]
[1752322468366,3.53,161.4,161.38,6.1941]
[1752322468773,3.53,161.4,161.38,9.6141]
[1752322468971,3.53,161.39,161.38,9.6141]
[1752322469869,3.53,161.39,161.37,2.3632098]
[1752322469870,6.193,161.42,161.39,6.1939]
[1752322470069,3.53,161.41,161.4,3.42]
[1752322471373,9.7232,161.41,161.4,3.42]
[1752322472079,6.1937,161.4,161.37,8.5578098]
[1752322472269,3.53,161.39,161.37,8.5578098]
[1752322472776,3.53,161.39,161.38,3.42]
[1752322474774,9.724,161.39,161.38,3.42]
[1752322476181,3.53,161.39,161.38,3.42]
[1752322477283,3.53,161.39,161.34,2.3632098]
[1752322477582,3.53,161.39,161.36,3.42]
[1752322477778,6.1949,161.37,161.36,3.42]
[1752322477984,9.7249,161.37,161.36,3.42]
[1752322478574,3.53,161.37,161.36,9.6151]
[1752322479086,3.53,161.37,161.36,3.42]
[1752322479581,6.1944,161.38,161.36,3.42]
[1752322479780,9.7244,161.38,161.36,3.42]
[1752322480882,6.194,161.39,161.36,8.5583098]
[1752322481082,9.724,161.39,161.37,3.42]
[1752322481581,9.7244,161.38,161.36,8.5583098]
[1752322481982,9.7244,161.38,161.37,3.42]
[1752322483686,3.53,161.38,161.37,3.42]
[1752322483986,3.53,161.41,161.38,3.42]
[1752322484185,3.53,161.41,161.39,3.42]
[1752322484393,2.3632098,161.44,161.39,3.42]
[1752322484394,3.53,161.4,161.39,3.42]
[1752322486782,9.7236,161.4,161.39,3.42]
[1752322486988,3.51,161.39,161.37,9.6146]
[1752322487289,2.3632098,161.44,161.37,6.1946]
[1752322487590,3.51,161.39,161.38,6.1942]
[1752322487892,3.51,161.39,161.38,9.6142]
[1752322489995,3.51,161.39,161.38,3.42]
[1752322490495,3.51,161.43,161.38,3.42]
[1752322491296,9.704,161.39,161.38,3.42]
[1752322492997,3.51,161.39,161.38,9.6143]
[1752322493294,9.7037,161.4,161.39,3.42]
[1752322498309,6.194,161.39,161.38,3.42]
[1752322498497,9.704,161.39,161.38,3.42]
[1752322498704,3.51,161.41,161.36,9.615]
[1752322499005,3.51,161.41,161.37,3.42]
[1752322500809,3.51,161.39,161.35,3.42]
[1752322500998,3.51,161.37,161.32,3.42]
[1752322501201,6.1954,161.36,161.33,6.1961]
[1752322501403,3.51,161.35,161.34,3.42]
[1752322501610,3.51,161.39,161.34,3.42]
[1752322501908,6.1946,161.38,161.35,6.1952]
[1752322502108,3.51,161.37,161.35,6.1952]
[1752322502504,3.51,161.39,161.36,3.42]
[1752322502904,6.1934,161.41,161.38,6.194]
[1752322503105,3.51,161.39,161.36,3.42]
[1752322503409,3.51,161.39,161.37,3.42]
[1752322504206,3.51,161.38,161.37,3.42]
[1752322505310,3.51,161.38,161.37,9.6147]
[1752322505603,6.1937,161.4,161.37,9.6147]
[1752322505809,3.51,161.39,161.38,3.42]
[1752322507114,9.704,161.39,161.38,3.42]
[1752322508811,3.51,161.39,161.38,3.42]
[1752322509416,9.7034,161.41,161.39,3.42]
[1752322509716,3.51,161.4,161.39,3.42]
[1752322509906,3.51,161.4,161.39,9.614]
[1752322510113,3.51,161.41,161.39,3.42]
[1752322510513,6.1929,161.42,161.39,6.1937]
[1752322510820,9.7029,161.42,161.4,3.42]
[1752322511119,3.51,161.42,161.4,9.6135]
[1752322511322,3.51,161.42,161.41,3.42]
[1752322511919,9.7028,161.42,161.41,3.42]
[1752322512221,9.7028,161.42,161.39,6.1937]
[1752322512222,3.51,161.42,161.39,3.42]
[1752322512818,6.1936,161.4,161.39,3.42]
[1752322513120,9.7036,161.4,161.39,3.42]
[1752322513321,6.1936,161.4,161.38,3.42]
[1752322513521,180.95823393,161.48,161.38,3.42]
[1752322513522,9.704,161.39,161.38,3.42]
[1752322514711,5.06150913,161.46,161.38,3.42]
[1752322514920,5.06150913,161.46,161.39,3.61]
[1752322514921,3.3,161.45,161.39,3.61]
[1752322515821,3.3,161.43,161.37,3.61]
[1752322516819,2.36275315,161.44,161.37,3.61]
[1752322516820,3.3,161.38,161.37,9.8047]
[1752322517522,3.3,161.45,161.37,3.61]
[1752322517818,3.3,161.44,161.42,3.61]
[1752322518123,3.3,161.44,161.42,9.8026]
[1752322518320,3.3,161.44,161.43,3.61]
[1752322518721,9.4919,161.45,161.43,3.61]
[1752322518921,9.4919,161.45,161.44,3.61]
[1752322521525,3.3,161.43,161.42,3.61]
[1752322521920,6.1928,161.42,161.4,3.61]
[1752322522125,3.3,161.41,161.39,6.1938]
[1752322522324,3.3,161.41,161.36,9.27572235]
[1752322522528,3.3,161.4,161.38,6.1941]
[1752322522826,3.3,161.4,161.39,3.61]
[1752322523424,6.1929,161.42,161.39,3.61]
[1752322523622,3.3,161.41,161.39,3.61]
[1752322524121,3.3,161.41,161.4,3.61]
[1752322525025,6.1929,161.42,161.4,3.61]
[1752322525222,3.3,161.42,161.4,9.8035]
[1752322525430,3.3,161.42,161.41,3.61]
[1752322526228,9.4928,161.42,161.41,3.61]
[1752322527620,9.4928,161.42,161.39,9.8038]
[1752322527828,6.1928,161.42,161.39,6.1938]
[1752322528030,9.4932,161.41,161.4,3.61]
[1752322530431,9.4932,161.41,161.38,12.16673171]
[1752322530624,9.4936,161.4,161.39,3.61]
[1752322530825,9.4936,161.4,161.38,8.55673171]
[1752322530826,3.3,161.4,161.38,3.61]
[1752322531224,3.3,161.39,161.38,3.61]
[1752322532530,3.3,161.38,161.34,2.36253171]
[1752322532830,3.3,161.37,161.35,3.61]
[1752322533130,3.3,161.37,161.35,9.8053]
[1752322533332,3.3,161.37,161.36,3.61]
[1752322534129,9.4947,161.37,161.36,3.61]
[1752322535825,3.3,161.39,161.32,2.36253171]
[1752322536022,3.3,161.37,161.32,3.61]
[1752322536434,6.1959,161.34,161.32,6.1965]
[1752322536728,9.4959,161.34,161.33,3.61]
[1752322537635,3.3,161.32,161.31,6.1969]
[1752322538029,6.1957,161.35,161.32,6.1966]
[1752322538231,3.3,161.34,161.33,3.61]
[1752322539326,9.4959,161.34,161.33,3.61]
[1752322539928,9.4959,161.34,161.31,6.1969]
[1752322540230,3.3,161.35,161.3,3.61]
[1752322540628,3.3,161.31,161.3,3.61]
[1752322541529,3.3,161.31,161.3,9.8074]
[1752322542131,3.3,161.31,161.3,3.61]
[1752322542332,3.3,161.31,161.27,2.36253171]
[1752322542530,3.3,161.31,161.28,3.61]
[1752322542731,6.1977,161.3,161.28,3.61]
[1752322542930,3.3,161.29,161.28,3.61]
[1752322543830,3.3,161.29,161.28,9.8082]
[1752322544031,3.3,161.3,161.29,3.61]
[1752322544435,3.3,161.33,161.26,3.61]
[1752322544934,6.198,161.29,161.26,9.8087]
[1752322545143,3.38,161.28,161.27,3.41]
[1752322545725,3.38,161.28,161.25,9.6092]
[1752322545926,3.38,161.28,161.25,3.41]
[1752322546127,3.38,161.26,161.24,3.41]
[1752322546339,3.38,161.26,161.22,3.41]
[1752322546634,3.38,161.25,161.18,3.41]
[1752322546837,3.38,161.23,161.16,3.41]
[1752322547033,6.2015,161.2,161.16,3.41]
[1752322547233,3.38,161.18,161.16,3.41]
[1752322547434,3.38,161.18,161.17,3.41]
[1752322547639,3.38,161.23,161.17,5.77971664]
[1752322547939,3.38,161.21,161.19,5.77971664]
[1752322548242,3.38,161.21,161.2,3.41]
[1752322548638,3.38,161.2,161.19,3.41]
[1752322548838,6.2003,161.23,161.19,9.6113]
[1752322549039,3.38,161.22,161.21,3.41]
[1752322549240,3.38,161.2,161.17,2.36971664]
[1752322549540,3.38,161.2,161.19,3.41]
[1752322549737,2.36971664,161.25,161.19,3.41]
[1752322549942,3.38,161.24,161.17,6.2023]
[1752322550338,6.2009,161.21,161.18,3.41]
[1752322550737,2.36971664,161.25,161.17,3.41]
[1752322550937,6.2005,161.22,161.17,3.41]
[1752322551356,3.38,161.21,161.18,6.2019]
[1752322551544,3.38,161.2,161.19,3.41]
[1752322552149,2.36971664,161.27,161.19,2.36971664]
[1752322552348,3.38,161.26,161.2,3.41]
[1752322553253,3.38,161.23,161.22,3.41]
[1752322554046,3.38,161.26,161.22,3.41]
[1752322554245,3.38,161.28,161.22,3.41]
[1752322554450,3.38,161.28,161.23,2.36971664]
[1752322554648,3.38,161.26,161.24,3.41]
[1752322554844,3.38,161.25,161.24,3.41]
[1752322556458,179.86,161.31,161.24,3.41]
[1752322556648,3.38,161.36,161.26,3.41]
[1752322556849,2.36971664,161.34,161.27,2.36971664]
[1752322557052,3.38,161.3,161.29,3.41]
[1752322558456,3.38,161.3,161.27,2.36971664]
[1752322558758,3.38,161.33,161.25,2.36971664]
[1752322558954,3.38,161.31,161.25,3.41]
[1752322559559,3.38,161.31,161.25,5.77971664]
[1752322559854,3.38,161.31,161.28,3.41]
[1752322560256,6.1973,161.31,161.28,6.1979]
[1752322560457,3.38,161.3,161.29,3.41]
[1752322561257,3.38,161.34,161.31,3.41]
[1752322561849,3.38,161.32,161.31,3.41]
[1752322562450,3.38,161.33,161.32,3.41]
[1752322564361,9.5763,161.33,161.32,3.41]
[1752322565765,2.36971664,161.33,161.28,3.41]
[1752322565965,3.38,161.32,161.26,3.41]
[1752322566264,6.1978,161.29,161.26,6.1986]
[1752322566469,3.38,161.28,161.27,3.41]
[1752322567160,3.38,161.28,161.26,3.41]
[1752322567358,0.0402819,161.29,161.26,3.41]
[1752322567557,3.38,161.27,161.26,3.41]
[1752322568460,6.1985,161.28,161.26,6.1989]
[1752322568665,0.0402819,161.29,161.17,179.96]
[1752322568666,3.4202819,161.29,161.28,3.41]
[1752322568865,9.6180819,161.29,161.28,3.41]
[1752322569165,3.38,161.29,161.28,3.41]
[1752322569364,3.41986116,161.3,161.28,3.41]
[1752322569767,3.41986116,161.3,161.29,3.41]
[1752322570157,9.61746116,161.3,161.29,3.41]
[1752322571864,6.1979,161.29,161.26,6.1988]
[1752322572065,3.38,161.28,161.27,3.41]
[1752322573762,6.1979,161.29,161.27,3.41]
[1752322573961,9.5779,161.29,161.27,3.41]
[1752322574264,6.23736116,161.3,161.28,3.41]
[1752322574665,0.03986116,161.3,161.28,9.6078]
[1752322574868,0.03986116,161.3,161.29,3.44]
[1752322575969,6.23726116,161.3,161.29,3.44]
[1752322576171,3.65986116,161.3,161.29,3.44]
[1752322576370,0.03986116,161.3,161.29,3.44]
[1752322577273,0.03986116,161.3,161.29,9.6378]
[1752322579975,3.65986116,161.3,161.29,3.44]
[1752322580374,0.03986116,161.3,161.29,3.44]
[1752322580770,0.03986116,161.3,161.29,9.6378]